[Event "26th OIBM 2023"]
[Site "Gmund am Tegernsee"]
[Date "2023.10.28"]
[Round "1.37"]
[White "Fauth, Dietmar"]
[Black "Koepke, Christian"]
[Result "1-0"]
[ECO "B12"]
[WhiteElo "2048"]
[BlackElo "2317"]
[Annotator "ChessBase"]
[PlyCount "137"]
[EventDate "2023.10.04"]
[EventType "swiss"]
[EventCountry "GER"]
[SourceTitle "playchess.com"]
[Source "ChessBase"]
[SourceQuality "1"]
[TimeControl "40/5400+30:1800+30"]

1. e4 {[%emt 0:00:06]} c6 {[%emt 0:00:20]} 2. d4 {[%emt 0:00:17]} d5 {[%emt 0:00:11]} 3. e5 {[%emt 0:00:23]} Bf5 {[%emt 0:00:57]} 4. Nf3 {[%emt 0:00:43]} e6 {[%emt 0:00:15]} 5. Be2 {[%emt 0:00:41]} Nd7 {[%emt 0:00:45]} 6. O-O {[%emt 0:00:40]} a5 {[%emt 0:01:10]} 7. a4 {[%emt 0:01:02]} f6 {[%emt 0:01:41]} 8. c4 {[%emt 0:10:55]} fxe5 {[%emt 0:02:47]} 9. dxe5 {[%emt 0:02:15]} Bc5 {[%emt 0:03:12]} 10. cxd5 {[%emt 0:05:03]} exd5 {[%emt 0:03:29]} 11. Nd4 {[%emt 0:03:08]} Bxd4 {[%emt 0:07:42]} 12. Qxd4 {[%emt 0:00:10]} Ne7 {[%emt 0:00:14]} 13. Bg5 {[%emt 0:04:45]} O-O {[%emt 0:31:23]} 14. Nd2 {[%emt 0:12:41]} h6 {[%emt 0:04:02]} 15. Bh4 {[%emt 0:02:07]} Bh7 {[%emt 0:13:38]} 16. Bg4 {[%emt 0:07:19]} Qe8 {[%emt 0:03:40]} 17. Bxe7 {[%emt 0:04:42]} Qxe7 {[%emt 0:00:11]} 18. f4 {[%emt 0:00:43]} Rae8 {[%emt 0:10:19]} 19. Rae1 {[%emt 0:15:03]} Qc5 {[%emt 0:04:57]} 20. Nb3 {[%emt 0:00:52]} Qxd4+ {[%emt 0:00:21]} 21. Nxd4 {[%emt 0:00:01]} Nc5 {[%emt 0:00:36]} 22. Re3 {[%emt 0:10:10]} Be4 {[%emt 0:00:53]} 23. b3 {[%emt 0:02:11]} Nd3 {[%emt 0:01:14]} 24. g3 {[%emt 0:04:28]} Re7 {[%emt 0:00:19]} 25. Rd1 {[%emt 0:04:45]} Nb4 {[%emt 0:02:08]} 26. Ne6 {[%emt 0:01:22]} Rff7 {[%emt 0:01:46]} 27. Rxe4 {[%emt 0:03:15]} dxe4 {[%emt 0:00:01]} 28. Rd8+ {[%emt 0:00:07]} Kh7 {[%emt 0:00:11]} 29. Nf8+ {[%emt 0:00:20]} Rxf8 {[%emt 0:00:36]} 30. Rxf8 {[%emt 0:00:02]} g6 {[%emt 0:03:14]} 31. Kf2 {[%emt 0:01:03]} Nd5 {[%emt 0:00:20]} 32. Rb8 {[%emt 0:00:33]} Kg7 {[%emt 0:00:57]} 33. Bc8 {[%emt 0:02:24]} b6 {[%emt 0:00:32]} 34. h4 {[%emt 0:01:53]} h5 {[%emt 0:00:09]} 35. Bh3 {[%emt 0:00:15]} b5 {[%emt 0:02:20]} 36. Bg2 {[%emt 0:00:32]} bxa4 {[%emt 0:00:41]} 37. bxa4 {[%emt 0:00:01]} Nc3 {[%emt 0:00:11]} 38. Ke3 {[%emt 0:00:27]} Nxa4 {[%emt 0:01:11]} 39. Bxe4 {[%emt 0:00:09]} Rc7 {[%emt 0:00:51]} 40. Ra8 {[%emt 0:01:03]} Nb2 {[%emt 0:00:13]} 41. Ra6 {[%emt 0:06:00]} a4 {[%emt 0:07:58]} 42. Bxc6 {[%emt 0:05:28]} a3 {[%emt 0:03:28]} 43. Bd5 {[%emt 0:03:48]} Rc3+ {[%emt 0:00:48]} 44. Ke4 {[%emt 0:00:18]} Nd1 {[%emt 0:07:15]} 45. Ra7+ {[%emt 0:03:55]} Kf8 {[%emt 0:00:22]} 46. e6 {[%emt 0:02:44]} Re3+ {[%emt 0:01:47]} 47. Kd4 {[%emt 0:00:19]} Re2 {[%emt 0:03:10]} 48. Be4 {[%emt 0:02:16]} Nf2 {[%emt 0:03:04]} 49. Bxg6 {[%emt 0:04:08]} Rxe6 {[%emt 0:00:29]} 50. Bxh5 {[%emt 0:00:11]} Re4+ {[%emt 0:01:30]} 51. Kd5 {[%emt 0:00:50]} Re3 {[%emt 0:00:52]} 52. f5 {[%emt 0:01:06]} Rd3+ {[%emt 0:04:12]} 53. Ke5 {[%emt 0:02:13]} Re3+ {[%emt 0:01:40]} 54. Kf4 {[%emt 0:00:15]} Re7 {[%emt 0:00:33]} 55. Rxa3 {[%emt 0:00:48]} Ne4 {[%emt 0:00:04]} 56. Re3 {[%emt 0:01:25]} Nf6 {[%emt 0:00:06]} 57. Rxe7 {[%emt 0:00:32]} Kxe7 {[%emt 0:00:23]} 58. Bf3 {[%emt 0:00:09]} Kf7 {[%emt 0:00:33]} 59. g4 {[%emt 0:00:19]} Kg7 {[%emt 0:00:48]} 60. g5 {[%emt 0:00:13]} Nd7 {[%emt 0:00:24]} 61. Bc6 {[%emt 0:01:15]} Nf8 {[%emt 0:00:33]} 62. Ke5 {[%emt 0:00:47]} Kf7 {[%emt 0:00:21]} 63. h5 {[%emt 0:00:57]} Kg7 {[%emt 0:00:11]} 64. h6+ {[%emt 0:00:57]} Kh7 {[%emt 0:01:36]} 65. Kf6 {[%emt 0:00:25]} Kg8 {[%emt 0:00:16]} 66. g6 {[%emt 0:00:24]} Kh8 {[%emt 0:00:21]} 67. g7+ {[%emt 0:00:34]} Kh7 {[%emt 0:00:04]} 68. gxf8=R {[%emt 0:00:13]} Kxh6 {[%emt 0:00:07]} 69. Rh8# {[%emt 0:00:05]} 1-0

[Event "26th OIBM 2023"]
[Site "Gmund am Tegernsee"]
[Date "2023.10.28"]
[Round "1.38"]
[White "Forchert, Martin"]
[Black "Scheckenbach, Franz"]
[Result "1-0"]
[ECO "B90"]
[WhiteElo "2317"]
[BlackElo "2046"]
[Annotator "ChessBase"]
[PlyCount "75"]
[EventDate "2023.10.04"]
[EventType "swiss"]
[EventCountry "GER"]
[SourceTitle "playchess.com"]
[Source "ChessBase"]
[SourceQuality "1"]
[TimeControl "40/5400+30:1800+30"]

1. e4 {[%emt 0:00:02]} c5 {[%emt 0:00:07]} 2. Nf3 {[%emt 0:00:09]} d6 {[%emt 0:00:09]} 3. d4 {[%emt 0:00:14]} cxd4 {[%emt 0:00:09]} 4. Nxd4 {[%emt 0:00:05]} Nf6 {[%emt 0:00:07]} 5. Nc3 {[%emt 0:00:04]} a6 {[%emt 0:00:06]} 6. h3 {[%emt 0:00:57]} e5 {[%emt 0:01:06]} 7. Nde2 {[%emt 0:00:13]} Be6 {[%emt 0:01:39]} 8. Bg5 {[%emt 0:01:08]} Nbd7 {[%emt 0:04:08]} 9. g4 {[%emt 0:05:29]} Be7 {[%emt 0:04:10]} 10. Bg2 {[%emt 0:03:33]} b5 {[%emt 0:02:35]} 11. a4 {[%emt 0:22:01]} b4 {[%emt 0:11:22]} 12. Nd5 {[%emt 0:00:16]} Bxd5 {[%emt 0:01:57]} 13. exd5 {[%emt 0:00:07]} h6 {[%emt 0:03:30]} 14. Bd2 {[%emt 0:03:15]} Rb8 {[%emt 0:04:35]} 15. Ng3 {[%emt 0:01:52]} g6 {[%emt 0:06:29]} 16. O-O {[%emt 0:22:30]} Kf8 {[%emt 0:11:24]} 17. c4 {[%emt 0:05:13]} Kg7 {[%emt 0:06:54]} 18. b3 {[%emt 0:08:04]} a5 {[%emt 0:07:35]} 19. Qc2 {[%emt 0:02:35]} Nc5 {[%emt 0:03:43]} 20. f4 {[%emt 0:05:46]} Nfd7 {[%emt 0:10:58]} 21. f5 {[%emt 0:01:29]} Nf6 {[%emt 0:03:34]} 22. fxg6 {[%emt 0:02:12]} fxg6 {[%emt 0:00:06]} 23. Rf2 {[%emt 0:00:07]} Qc7 {[%emt 0:05:15]} 24. Raf1 {[%emt 0:00:20]} Rbf8 {[%emt 0:00:10]} 25. Be3 {[%emt 0:01:39]} Nfd7 {[%emt 0:00:43]} 26. Be4 {[%emt 0:00:19]} Nxe4 {[%emt 0:04:25]} 27. Nxe4 {[%emt 0:00:06]} Rxf2 {[%emt 0:01:10]} 28. Rxf2 {[%emt 0:00:31]} Nf6 {[%emt 0:01:14]} 29. Ng3 {[%emt 0:01:50]} Rf8 {[%emt 0:00:22]} 30. Qd2 {[%emt 0:00:26]} Ng8 {[%emt 0:00:26]} 31. Rxf8 {[%emt 0:00:35]} Bxf8 {[%emt 0:00:08]} 32. Ne4 {[%emt 0:00:08]} Qf7 {[%emt 0:03:40]} 33. Qf2 {[%emt 0:00:22]} Qb7 {[%emt 0:01:22]} 34. Bb6 {[%emt 0:01:02]} Qa6 {[%emt 0:00:27]} 35. Bd8 {[%emt 0:01:04]} Qc8 {[%emt 0:00:34]} 36. Qb6 {[%emt 0:02:02]} Be7 {[%emt 0:01:22]} 37. Bxe7 {[%emt 0:00:10]} Nxe7 {[%emt 0:00:04]} 38. Qxd6 {[%emt 0:00:16]} 1-0

[Event "26th OIBM 2023"]
[Site "Gmund am Tegernsee"]
[Date "2023.10.28"]
[Round "1.39"]
[White "Klings, Peter"]
[Black "Dobrosmyslov, Artem"]
[Result "0-1"]
[ECO "B31"]
[WhiteElo "2045"]
[BlackElo "2316"]
[Annotator "ChessBase"]
[PlyCount "92"]
[EventDate "2023.10.04"]
[EventType "swiss"]
[EventCountry "GER"]
[SourceTitle "playchess.com"]
[Source "ChessBase"]
[SourceQuality "1"]
[TimeControl "40/5400+30:1800+30"]

1. e4 {[%emt 0:00:04]} c5 {[%emt 0:00:31]} 2. Nf3 {[%emt 0:00:07]} Nc6 {[%emt 0:00:13]} 3. Bb5 {[%emt 0:00:07]} g6 {[%emt 0:00:08]} 4. Bxc6 {[%emt 0:00:06]} bxc6 {[%emt 0:00:37]} 5. O-O {[%emt 0:00:09]} Bg7 {[%emt 0:00:06]} 6. Re1 {[%emt 0:00:23]} Nh6 {[%emt 0:00:30]} 7. c3 {[%emt 0:01:15]} O-O {[%emt 0:00:34]} 8. d4 {[%emt 0:00:09]} cxd4 {[%emt 0:00:11]} 9. cxd4 {[%emt 0:00:06]} d5 {[%emt 0:00:04]} 10. e5 {[%emt 0:01:36]} f6 {[%emt 0:00:29]} 11. h3 {[%emt 0:04:09]} Nf7 {[%emt 0:07:12]} 12. e6 {[%emt 0:03:25]} Nd6 {[%emt 0:00:06]} 13. Nc3 {[%emt 0:01:47]} Ne4 {[%emt 0:09:21]} 14. Nxe4 {[%emt 0:03:45]} dxe4 {[%emt 0:00:32]} 15. Rxe4 {[%emt 0:00:07]} Qd5 {[%emt 0:00:29]} 16. Re1 {[%emt 0:13:30]} Bxe6 {[%emt 0:04:12]} 17. Qe2 {[%emt 0:00:21]} Bd7 {[%emt 0:03:18]} 18. Be3 {[%emt 0:06:45]} a5 {[%emt 0:07:15]} 19. Rec1 {[%emt 0:04:19]} Be6 {[%emt 0:06:06]} 20. Rc5 {[%emt 0:06:51]} Qd7 {[%emt 0:00:59]} 21. Bd2 {[%emt 0:05:58]} a4 {[%emt 0:02:26]} 22. Bb4 {[%emt 0:05:52]} Bd5 {[%emt 0:02:27]} 23. Rc3 {[%emt 0:02:06]} Rf7 {[%emt 0:04:40]} 24. Bc5 {[%emt 0:02:16]} Rb8 {[%emt 0:02:22]} 25. Ra3 {[%emt 0:02:22]} g5 {[%emt 0:04:53]} 26. Rc1 {[%emt 0:04:34]} Qf5 {[%emt 0:16:59]} 27. Nh2 {[%emt 0:10:32]} Qf4 {[%emt 0:09:03]} 28. Re1 {[%emt 0:02:50]} e5 {[%emt 0:11:47]} 29. Rxa4 {[%emt 0:01:39]} e4 {[%emt 0:00:53]} 30. b3 {[%emt 0:01:30]} f5 {[%emt 0:01:10]} 31. Nf1 {[%emt 0:04:17]} Qh4 {[%emt 0:02:13]} 32. Ne3 {[%emt 0:00:57]} Be6 {[%emt 0:01:55]} 33. Nc4 {[%emt 0:13:06]} g4 {[%emt 0:01:30]} 34. hxg4 {[%emt 0:00:00]} fxg4 {[%emt 0:00:39]} 35. g3 {[%emt 0:00:00]} Qh5 {[%emt 0:01:05]} 36. Ne3 {[%emt 0:00:00]} Rf6 {[%emt 0:00:20]} 37. Qf1 {[%emt 0:00:00]} Bh6 {[%emt 0:00:43]} 38. Bd6 {[%emt 0:00:37]} Re8 {[%emt 0:00:45]} 39. Be5 {[%emt 0:00:44]} Rf3 {[%emt 0:00:02]} 40. Qg2 {[%emt 0:00:57]} Ref8 {[%emt 0:00:11]} 41. Ra7 {[%emt 0:08:02]} Rxf2 {[%emt 0:02:46]} 42. Qxf2 {[%emt 0:00:17]} Rxf2 {[%emt 0:00:03]} 43. Kxf2 {[%emt 0:00:03]} Qh2+ {[%emt 0:00:09]} 44. Kf1 {[%emt 0:01:13]} Qh1+ {[%emt 0:00:14]} 45. Ke2 {[%emt 0:00:31]} Qf3+ {[%emt 0:00:07]} 46. Kd2 {[%emt 0:00:10]} Qf2+ {[%emt 0:00:12]} 0-1

[Event "26th OIBM 2023"]
[Site "Gmund am Tegernsee"]
[Date "2023.10.28"]
[Round "1.40"]
[White "Baerwinkel, Tobias"]
[Black "Glaser, Christian"]
[Result "1-0"]
[ECO "E01"]
[WhiteElo "2315"]
[BlackElo "2043"]
[Annotator "ChessBase"]
[PlyCount "75"]
[EventDate "2023.10.04"]
[EventType "swiss"]
[EventCountry "GER"]
[SourceTitle "playchess.com"]
[Source "ChessBase"]
[SourceQuality "1"]
[TimeControl "40/5400+30:1800+30"]

1. d4 {[%emt 0:00:05]} d5 {[%emt 0:00:05]} 2. c4 {[%emt 0:00:11]} c6 {[%emt 0:00:02]} 3. Nf3 {[%emt 0:00:37]} Nf6 {[%emt 0:01:02]} 4. g3 {[%emt 0:00:18]} e6 {[%emt 0:01:37]} 5. Bg2 {[%emt 0:01:45]} Bb4+ {[%emt 0:00:43]} 6. Nbd2 {[%emt 0:01:15]} Ne4 {[%emt 0:03:51]} 7. O-O {[%emt 0:02:42]} Nxd2 {[%emt 0:03:39]} 8. Nxd2 {[%emt 0:02:36]} O-O {[%emt 0:00:52]} 9. e4 {[%emt 0:02:57]} Na6 {[%emt 0:05:02]} 10. e5 {[%emt 0:05:49]} Be7 {[%emt 0:01:01]} 11. b3 {[%emt 0:06:39]} b6 {[%emt 0:01:40]} 12. h4 {[%emt 0:05:00]} Bb7 {[%emt 0:02:31]} 13. cxd5 {[%emt 0:00:56]} cxd5 {[%emt 0:00:16]} 14. a3 {[%emt 0:02:58]} Nc7 {[%emt 0:04:59]} 15. h5 {[%emt 0:02:10]} Ba6 {[%emt 0:00:55]} 16. h6 {[%emt 0:03:30]} g6 {[%emt 0:00:35]} 17. Re1 {[%emt 0:00:13]} Qd7 {[%emt 0:02:03]} 18. Nf1 {[%emt 0:06:35]} Rfc8 {[%emt 0:06:59]} 19. Ne3 {[%emt 0:07:33]} Ne8 {[%emt 0:07:19]} 20. Qg4 {[%emt 0:07:00]} Rc7 {[%emt 0:02:16]} 21. Bd2 {[%emt 0:02:17]} Rac8 {[%emt 0:01:35]} 22. a4 {[%emt 0:03:37]} Bd3 {[%emt 0:01:35]} 23. Bf1 {[%emt 0:05:28]} Bxf1 {[%emt 0:00:54]} 24. Rxf1 {[%emt 0:00:22]} Bf8 {[%emt 0:01:17]} 25. Qf4 {[%emt 0:01:35]} Qd8 {[%emt 0:02:38]} 26. Kg2 {[%emt 0:02:32]} f5 {[%emt 0:01:51]} 27. Rh1 {[%emt 0:27:20]} Be7 {[%emt 0:10:52]} 28. Qf3 {[%emt 0:00:00]} Bg5 {[%emt 0:03:52]} 29. a5 {[%emt 0:00:00]} b5 {[%emt 0:05:48]} 30. Qe2 {[%emt 0:00:00]} Rc6 {[%emt 0:03:50]} 31. a6 {[%emt 0:00:00]} Nc7 {[%emt 0:00:47]} 32. f4 {[%emt 0:02:30]} Be7 {[%emt 0:00:15]} 33. g4 {[%emt 0:00:00]} Qe8 {[%emt 0:04:00]} 34. gxf5 {[%emt 0:00:00]} gxf5 {[%emt 0:00:03]} 35. Kf3 {[%emt 0:00:00]} Kh8 {[%emt 0:01:13]} 36. Rag1 {[%emt 0:00:00]} Rxa6 {[%emt 0:02:16]} 37. Rg7 {[%emt 0:00:00]} Bf8 {[%emt 0:00:44]} 38. Qg2 {[%emt 0:00:00]} 1-0

[Event "26th OIBM 2023"]
[Site "Gmund am Tegernsee"]
[Date "2023.10.28"]
[Round "1.41"]
[White "Buttkus, Andre"]
[Black "Unuk, Laura"]
[Result "0-1"]
[ECO "E27"]
[WhiteElo "2042"]
[BlackElo "2313"]
[Annotator "ChessBase"]
[PlyCount "22"]
[EventDate "2023.10.04"]
[EventType "swiss"]
[EventCountry "GER"]
[SourceTitle "playchess.com"]
[Source "ChessBase"]
[SourceQuality "1"]
[TimeControl "40/5400+30:1800+30"]

1. d4 {[%emt 0:00:14]} Nf6 {[%emt 0:00:38]} 2. c4 {[%emt 0:00:36]} e6 {[%emt 0:00:28]} 3. Nc3 {[%emt 0:00:14]} Bb4 {[%emt 0:00:45]} 4. f3 {[%emt 0:00:38]} d5 {[%emt 0:06:08]} 5. a3 {[%emt 0:00:54]} Bxc3+ {[%emt 0:02:44]} 6. bxc3 {[%emt 0:00:14]} O-O {[%emt 0:01:59]} 7. cxd5 {[%emt 0:01:10]} exd5 {[%emt 0:00:56]} 8. e3 {[%emt 0:01:01]} Bf5 {[%emt 0:15:11]} 9. g4 {[%emt 0:04:31]} Nxg4 {[%emt 0:05:50]} 10. fxg4 {[%emt 0:00:48]} Qh4+ {[%emt 0:00:20]} 11. Kd2 {[%emt 0:00:54]} Be4 {[%emt 0:01:21]} 0-1

[Event "26th OIBM 2023"]
[Site "Gmund am Tegernsee"]
[Date "2023.10.28"]
[Round "1.42"]
[White "Mai, Philipp"]
[Black "Kroneder, Christian"]
[Result "1-0"]
[ECO "D13"]
[WhiteElo "2313"]
[BlackElo "2042"]
[Annotator "ChessBase"]
[PlyCount "81"]
[EventDate "2023.10.04"]
[EventType "swiss"]
[EventCountry "GER"]
[SourceTitle "playchess.com"]
[Source "ChessBase"]
[SourceQuality "1"]
[TimeControl "40/5400+30:1800+30"]

1. d4 {[%emt 0:00:06]} d5 {[%emt 0:00:06]} 2. c4 {[%emt 0:00:05]} c6 {[%emt 0:00:04]} 3. Nf3 {[%emt 0:01:18]} Nf6 {[%emt 0:00:06]} 4. Nc3 {[%emt 0:00:52]} a6 {[%emt 0:00:08]} 5. cxd5 {[%emt 0:02:46]} cxd5 {[%emt 0:00:05]} 6. Bf4 {[%emt 0:02:15]} Nc6 {[%emt 0:00:13]} 7. e3 {[%emt 0:00:32]} Bg4 {[%emt 0:00:18]} 8. Be2 {[%emt 0:00:21]} e6 {[%emt 0:02:06]} 9. O-O {[%emt 0:00:52]} Bd6 {[%emt 0:02:53]} 10. Bxd6 {[%emt 0:02:24]} Qxd6 {[%emt 0:01:05]} 11. Rc1 {[%emt 0:01:07]} O-O {[%emt 0:02:02]} 12. h3 {[%emt 0:02:17]} Bxf3 {[%emt 0:01:55]} 13. Bxf3 {[%emt 0:00:07]} b5 {[%emt 0:01:20]} 14. e4 {[%emt 0:05:30]} Qd7 {[%emt 0:16:01]} 15. e5 {[%emt 0:05:15]} Ne8 {[%emt 0:00:30]} 16. Qd2 {[%emt 0:00:08]} f6 {[%emt 0:04:31]} 17. Rfe1 {[%emt 0:03:06]} Rc8 {[%emt 0:06:50]} 18. Bg4 {[%emt 0:05:06]} fxe5 {[%emt 0:07:22]} 19. dxe5 {[%emt 0:00:07]} Rc7 {[%emt 0:12:37]} 20. Ne4 {[%emt 0:05:20]} Nxe5 {[%emt 0:23:12]} 21. Nc5 {[%emt 0:04:09]} Qd6 {[%emt 0:01:11]} 22. Bxe6+ {[%emt 0:00:58]} Kh8 {[%emt 0:01:13]} 23. Qxd5 {[%emt 0:00:22]} Qxd5 {[%emt 0:01:00]} 24. Bxd5 {[%emt 0:00:07]} Rxc5 {[%emt 0:02:16]} 25. Rxc5 {[%emt 0:00:39]} Nd3 {[%emt 0:00:03]} 26. Rec1 {[%emt 0:04:14]} Nd6 {[%emt 0:03:37]} 27. Rc6 {[%emt 0:02:13]} Nxc1 {[%emt 0:00:15]} 28. Rxc1 {[%emt 0:00:16]} Rd8 {[%emt 0:02:18]} 29. Rc6 {[%emt 0:04:30]} a5 {[%emt 0:02:57]} 30. Ra6 {[%emt 0:01:31]} a4 {[%emt 0:00:48]} 31. b3 {[%emt 0:01:28]} axb3 {[%emt 0:00:21]} 32. axb3 {[%emt 0:00:12]} g6 {[%emt 0:00:16]} 33. Ra8 {[%emt 0:00:30]} Rxa8 {[%emt 0:00:10]} 34. Bxa8 {[%emt 0:00:02]} Kg7 {[%emt 0:00:09]} 35. Kf1 {[%emt 0:03:14]} Kf6 {[%emt 0:00:14]} 36. Ke2 {[%emt 0:00:46]} Ke5 {[%emt 0:01:44]} 37. Kd3 {[%emt 0:00:10]} b4 {[%emt 0:01:45]} 38. Bc6 {[%emt 0:01:33]} g5 {[%emt 0:00:49]} 39. Ba8 {[%emt 0:02:36]} h5 {[%emt 0:03:21]} 40. Bf3 {[%emt 0:01:58]} h4 {[%emt 0:00:38]} 41. Bc6 {[%emt 0:33:36]} 1-0

[Event "26th OIBM 2023"]
[Site "Gmund am Tegernsee"]
[Date "2023.10.28"]
[Round "1.43"]
[White "Schrems, Hermann"]
[Black "Schuster, Karsten"]
[Result "0-1"]
[ECO "B90"]
[WhiteElo "2042"]
[BlackElo "2309"]
[Annotator "ChessBase"]
[PlyCount "51"]
[EventDate "2023.10.04"]
[EventType "swiss"]
[EventCountry "GER"]
[SourceTitle "playchess.com"]
[Source "ChessBase"]
[SourceQuality "1"]
[TimeControl "40/5400+30:1800+30"]

1. e4 {[%emt 0:00:30]} c5 {[%emt 0:00:19]} 2. Nf3 {[%emt 0:00:00]} d6 {[%emt 0:00:25]} 3. d4 {[%emt 0:00:00]} cxd4 {[%emt 0:00:09]} 4. Nxd4 {[%emt 0:00:04]} Nf6 {[%emt 0:00:22]} 5. Nc3 {[%emt 0:00:06]} a6 {[%emt 0:00:17]} 6. Be3 {[%emt 0:00:27]} e5 {[%emt 0:00:53]} 7. Nb3 {[%emt 0:00:18]} Be6 {[%emt 0:00:26]} 8. Qf3 {[%emt 0:02:44]} Nbd7 {[%emt 0:05:59]} 9. h3 {[%emt 0:01:08]} b5 {[%emt 0:01:46]} 10. O-O-O {[%emt 1:30:13]} Be7 {[%emt 0:04:56]} 11. g4 {[%emt 0:00:00]} b4 {[%emt 0:02:10]} 12. Nd5 {[%emt 0:00:00]} Bxd5 {[%emt 0:08:51]} 13. exd5 {[%emt 0:00:00]} h6 {[%emt 0:00:48]} 14. h4 {[%emt 0:00:00]} a5 {[%emt 0:04:47]} 15. Kb1 {[%emt 0:00:00]} a4 {[%emt 0:09:03]} 16. Nd2 {[%emt 0:00:00]} Ra5 {[%emt 0:14:45]} 17. Nc4 {[%emt 0:00:00]} e4 {[%emt 0:00:55]} 18. Qf4 {[%emt 0:00:00]} Rxd5 {[%emt 0:07:06]} 19. Rxd5 {[%emt 0:00:00]} Nxd5 {[%emt 0:00:14]} 20. Qxe4 {[%emt 0:00:00]} N7f6 {[%emt 0:04:57]} 21. Qd4 {[%emt 0:00:00]} Qa8 {[%emt 0:04:19]} 22. Rg1 {[%emt 0:00:00]} Nxe3 {[%emt 0:01:31]} 23. Nxe3 {[%emt 0:00:00]} O-O {[%emt 0:01:30]} 24. Bg2 {[%emt 0:00:00]} d5 {[%emt 0:06:29]} 25. g5 {[%emt 0:00:00]} hxg5 {[%emt 0:05:05]} 26. hxg5 {[%emt 0:00:00]} 0-1

[Event "26th OIBM 2023"]
[Site "Gmund am Tegernsee"]
[Date "2023.10.28"]
[Round "1.44"]
[White "Garner, Isaac"]
[Black "Weichelt, Jens"]
[Result "1-0"]
[ECO "D02"]
[WhiteElo "2309"]
[BlackElo "2042"]
[Annotator "ChessBase"]
[PlyCount "35"]
[EventDate "2023.10.04"]
[EventType "swiss"]
[EventCountry "GER"]
[SourceTitle "playchess.com"]
[Source "ChessBase"]
[SourceQuality "1"]
[TimeControl "40/5400+30:1800+30"]

1. Nf3 {[%emt 0:00:11]} d5 {[%emt 0:00:11]} 2. g3 {[%emt 0:00:14]} Nf6 {[%emt 0:00:10]} 3. Bg2 {[%emt 0:00:07]} c6 {[%emt 0:00:45]} 4. O-O {[%emt 0:00:18]} g6 {[%emt 0:01:22]} 5. d4 {[%emt 0:00:30]} Bg7 {[%emt 0:00:09]} 6. a4 {[%emt 0:00:08]} a5 {[%emt 0:02:44]} 7. c4 {[%emt 0:00:44]} O-O {[%emt 0:03:15]} 8. cxd5 {[%emt 0:00:19]} cxd5 {[%emt 0:02:47]} 9. Nc3 {[%emt 0:00:22]} e6 {[%emt 0:02:15]} 10. Bf4 {[%emt 0:05:08]} Nc6 {[%emt 0:10:14]} 11. Rc1 {[%emt 0:12:53]} Nh5 {[%emt 0:14:45]} 12. Be3 {[%emt 0:08:20]} Bd7 {[%emt 0:10:16]} 13. Qb3 {[%emt 0:03:21]} Ra6 {[%emt 0:04:34]} 14. Nb5 {[%emt 0:19:34]} Rb6 {[%emt 0:08:39]} 15. Ne5 {[%emt 0:09:27]} Na7 {[%emt 0:08:03]} 16. Nxd7 {[%emt 0:00:26]} Qxd7 {[%emt 0:00:14]} 17. Rc5 {[%emt 0:01:41]} Nxb5 {[%emt 0:06:15]} 18. Rxb5 {[%emt 0:07:42]} 1-0